Workbook

Sheet Входной мониторинг
A1: Регион | B1: Республика Татарстан
A2: Населенный пункт | B2: с.Шугурово
A3: Название образовательной организации | B3: МБОУ "Шугуровская СОШ имени В.П.Чкалова" МО "Лениногорский муниципальный район"
A4: Дата проведения мониторинга | B4: 2020-04-15
D5: ПРИМЕР
A6: Оцените в процентном соотношении. | B6: Ответы | D6: Ответы
A7: 1. Чьи интересы и ценности ставятся на первое место в данной образовательной среде? | B7: а) личности; | C7: б) общества (группы). | D7: а) личности; | E7: б) общества (группы).
A8: Констатация приоритета личностных интересов и ценностей над общественными интерпретируется как возможность свободного развития ребенка, — соответственно, присваивается балл по шкале “свобода”; в случае констатации приоритета общественных интересов – присваивается балл по шкале “зависимость”. | B8: 20 | C8: 80 | D8: 40 | E8: 60
A9: 2. Кто к кому подстраивается в процессе взаимодействия? | B9: а) воспитатель/педагог к ребенку; | C9: б) ребенок к воспитателю/педагогу. | D9: Сумма по двум показателям должна быть равна 100
A10: Если отмечается, что в данной образовательной среде доминируют ситуации, когда воспитатель подстраивается к ребенку (или, по крайней мере, существует стремление воспитателей к такому положению), то это также интерпретируется как возможность свободного развития ребенка, — соответственно, присваивается балл по шкале “свобода”; если же констатируется, что ребенок вынужден приспосабливаться к своим воспитателям, то присваивается балл по шкале “зависимость”. | B10: 30 | C10: 70
A11: 3. Какая форма воспитания преимущественно осуществляется в данной образовательной среде? | B11: а) индивидуальная; | C11: б) коллективная (групповая).
A12: Ориентация образовательной среды на индивидуальную форму воспитания интерпретируется как наличие в среде дополнительной возможности для свободного развития самостоятельного ребенка, — присваивается балл по шкале “свобода”; в случае приоритета в образовательной среде коллективного воспитания присваивается балл по шкале “зависимость”. | B12: 40 | C12: 60
A13: 4. Практикуется ли в данной образовательной среде наказание ребенка? | B13: а) да; | C13: б) нет.
A14: Отсутствие наказаний рассматривается в качестве условия, способствующего развитию активности ребенка, — присваивается балл по шкале “активность”, при наличии в данной образовательной среде системы наказаний (используемой как прямо, так и опосредованно) — присваивается балл по шкале “пассивность”. | B14: 30 | C14: 70
A15: 5. Стимулируется ли в данной образовательной среде проявление ребенком какой-либо инициативы? | B15: а) да; | C15: б) нет.
A16: Если в рассматриваемой образовательной среде можно констатировать положительное подкрепление инициативы ребенка (как сознательное, так и бессознательное), то это интерпретируется как дополнительная возможность развития его активности, присваивается балл по шкале “активность”; если же, проявленная ребенком инициатива, как правило, может обернуться для него различного рода неприятностями, то присваивается балл по шкале “пассивность”. | B16: 40 | C16: 60
A17: 6. Находят ли какой-либо положительный отклик в данной образовательной среде те или иные творческие проявления ребенка? | B17: а) да; | C17: б) нет.
A18: В случае, когда в образовательной среде существуют условия, при которых творчество ребенка стимулируется или может быть оценено, такая среда рассматривается как способствующая развитию активности, — присваивается балл по шкале “активность”; если же творческие проявления ребенка игнорируются, остаются, как правило, незамеченными и неоцененными – присваивается балл по шкале “пассивность”. | B18: 30 | C18: 70
A42: Графическая модель соотношения типов образовательной среды
A45: Активность | B45: =(B14+B16+B18)/3 -> 33
A46: Зависимость | B46: =(C8+C10+C12)/3 -> 70
A47: Пассивность | B47: =(C14+C16+C18)/3 -> 67
A48: Свобода | B48: =(B8+B10+B12)/3 -> 30
C50: =
A51: Догматическая среда | B51: =(B46*B47)/100 -> 47
A52: Карьерная среда | B52: =B46*B45/100 -> 23
A53: Творческая среда | B53: =B48*B45/100 -> 10
A54: Безмятежная среда | B54: =B48*B47/100 -> 20
A60: 1 | B60: =IF(B8>50,-1,1) -> 1
A61: 2 | B61: =IF(B10>50,-1,1) -> 1
A62: 3 | B62: =IF(B12>50,-1,1) -> 1
A64: 4 | B64: =IF(B14>50,1,-1) -> -1
A65: 5 | B65: =IF(B16>50,1,-1) -> -1
A66: 6 | B66: =IF(B18>50,1,-1) -> -1
B68: Свобода - зависимость | C68: 0 | D68: =SUM(B60:B62) -> 3
B69: Активность - пассивность | C69: 0 | D69: =SUM(B64:B66) -> -3
A72: Диагностическая методика В.А. Ясвина
A74: Критерии оценки среды | B74: Баллы (max.10)
A75: ОБЩАЯ
A77: Широта | B77: 0
A78: Интенсивность | B78: 0
A79: Осознаваемость | B79: 0
A80: Обобщенность | B80: 0
A81: Эмоциональность | B81: 0
A82: Доминантность | B82: 0
A83: Когерентность | B83: 0
A84: Активность | B84: 0
A85: Мобильность | B85: 0
A86: Структурированность | B86: 0
A87: Безопасность | B87: 0
A88: Устойчивость | B88: 0
A103: Диагностическая методика В.А. Ясвина
A106: Дифференцированная
A108: Критерии оценки среды | B108: Баллы (max.10) | C108: Баллы (max.10) | D108: Баллы (max.10) | E108: Баллы (max.10) | F108: Баллы (max.10)
B110: РУКОВОДИТЕЛЬ/ ДИРЕКТОР | C110: АДМИНИСТРАЦИЯ | D110: ПЕДАГОГИЧЕСКИЕ РАБОТНИКИ | E110: РОДИТЕЛИ | F110: УЧЕНИКИ
A111: Количество опрошенных | B111: 0 | C111: 0 | D111: 0 | E111: 0 | F111: 0
A112: Широта | B112: 0 | C112: 0 | D112: 0 | E112: 0 | F112: 0
A113: Интенсивность | B113: 0 | C113: 0 | D113: 0 | E113: 0 | F113: 0
A114: Осознаваемость | B114: 0 | C114: 0 | D114: 0 | E114: 0 | F114: 0
A115: Обобщенность | B115: 0 | C115: 0 | D115: 0 | E115: 0 | F115: 0
A116: Эмоциональность | B116: 0 | C116: 0 | D116: 0 | E116: 0 | F116: 0
A117: Доминантность | B117: 0 | C117: 0 | D117: 0 | E117: 0 | F117: 0
A118: Когерентность | B118: 0 | C118: 0 | D118: 0 | E118: 0 | F118: 0
A119: Активность | B119: 0 | C119: 0 | D119: 0 | E119: 0 | F119: 0
A120: Мобильность | B120: 0 | C120: 0 | D120: 0 | E120: 0 | F120: 0
A121: Структурированность | B121: 0 | C121: 0 | D121: 0 | E121: 0 | F121: 0
A122: Безопасность | B122: 0 | C122: 0 | D122: 0 | E122: 0 | F122: 0
A123: Устойчивость | B123: 0 | C123: 0 | D123: 0 | E123: 0 | F123: 0

Sheet Промежуточный мониторинг -1
A1: Дата проведения мониторинга | B1: 2021-04-22
D3: ПРИМЕР
A4: Оцените в процентном соотношении. | B4: Ответы | D4: Ответы
A5: 1. Чьи интересы и ценности ставятся на первое место в данной образовательной среде? | B5: а) личности; | C5: б) общества (группы). | D5: а) личности; | E5: б) общества (группы).
A6: Констатация приоритета личностных интересов и ценностей над общественными интерпретируется как возможность свободного развития ребенка, — соответственно, присваивается балл по шкале “свобода”; в случае констатации приоритета общественных интересов – присваивается балл по шкале “зависимость”. | B6: 42 | C6: 58
A7: 2. Кто к кому подстраивается в процессе взаимодействия? | B7: а) воспитатель/педагог к ребенку | C7: б) ребенок к воспитателю/педагогу. | D7: Сумма по двум показателям должна быть равна 100
A8: Если отмечается, что в данной образовательной среде доминируют ситуации, когда воспитатель подстраивается к ребенку (или, по крайней мере, существует стремление воспитателей к такому положению), то это также интерпретируется как возможность свободного развития ребенка, — соответственно, присваивается балл по шкале “свобода”; если же констатируется, что ребенок вынужден приспосабливаться к своим воспитателям, то присваивается балл по шкале “зависимость”. | B8: 64 | C8: 36
A9: 3. Какая форма воспитания преимущественно осуществляется в данной образовательной среде? | B9: а) индивидуальная; | C9: б) коллективная (групповая).
A10: Ориентация образовательной среды на индивидуальную форму воспитания интерпретируется как наличие в среде дополнительной возможности для свободного развития самостоятельного ребенка, — присваивается балл по шкале “свобода”; в случае приоритета в образовательной среде коллективного воспитания присваивается балл по шкале “зависимость”. | B10: 48 | C10: 52
A11: 4. Практикуется ли в данной образовательной среде наказание ребенка? | B11: а) да; | C11: б) нет.
A12: Отсутствие наказаний рассматривается в качестве условия, способствующего развитию активности ребенка, — присваивается балл по шкале “активность”, при наличии в данной образовательной среде системы наказаний (используемой как прямо, так и опосредованно) — присваивается балл по шкале “пассивность”. | B12: 8 | C12: 92
A13: 5. Стимулируется ли в данной образовательной среде проявление ребенком какой-либо инициативы? | B13: а) да; | C13: б) нет.
A14: Если в рассматриваемой образовательной среде можно констатировать положительное подкрепление инициативы ребенка (как сознательное, так и бессознательное), то это интерпретируется как дополнительная возможность развития его активности, присваивается балл по шкале “активность”; если же, проявленная ребенком инициатива, как правило, может обернуться для него различного рода неприятностями, то присваивается балл по шкале “пассивность”. | B14: 73 | C14: 27
A15: 6. Находят ли какой-либо положительный отклик в данной образовательной среде те или иные творческие проявления ребенка? | B15: а) да; | C15: б) нет.
A16: В случае, когда в образовательной среде существуют условия, при которых творчество ребенка стимулируется или может быть оценено, такая среда рассматривается как способствующая развитию активности, — присваивается балл по шкале “активность”; если же творческие проявления ребенка игнорируются, остаются, как правило, незамеченными и неоцененными – присваивается балл по шкале “пассивность”. | B16: 85 | C16: 15
A40: Графическая модель соотношения типов образовательной среды
A43: Активность | B43: =(B12+B14+B16)/3 -> 55
A44: Зависимость | B44: =(C6+C8+C10)/3 -> 49
A45: Пассивность | B45: =(C12+C14+C16)/3 -> 45
A46: Свобода | B46: =(B6+B8+B10)/3 -> 51
C48: =
A49: Догматическая среда | B49: =(B44*B45)/100 -> 22
A50: Карьерная среда | B50: =B44*B43/100 -> 27
A51: Творческая среда | B51: =B46*B43/100 -> 28
A52: Безмятежная среда | B52: =B46*B45/100 -> 23
A58: 1 | B58: =IF(B6>50,-1,1) -> 1
A59: 2 | B59: =IF(B8>50,-1,1) -> -1
A60: 3 | B60: =IF(B10>50,-1,1) -> 1
A62: 4 | B62: =IF(B12>50,1,-1) -> -1
A63: 5 | B63: =IF(B14>50,1,-1) -> 1
A64: 6 | B64: =IF(B16>50,1,-1) -> 1
B66: Свобода - зависимость | C66: 0 | D66: =SUM(B58:B60) -> 1
B67: Активность - пассивность | C67: 0 | D67: =SUM(B62:B64) -> 1
A70: Диагностическая методика В.А. Ясвина
A72: Критерии оценки среды | B72: Баллы (max.10)
A73: ОБЩАЯ
A75: Широта | B75: 5
A76: Интенсивность | B76: 7
A77: Осознаваемость | B77: 7
A78: Обобщенность | B78: 8
A79: Эмоциональность | B79: 9
A80: Доминантность | B80: 9
A81: Когерентность | B81: 9
A82: Активность | B82: 8
A83: Мобильность | B83: 8
A84: Структурированность | B84: 9
A85: Безопасность | B85: 9
A86: Устойчивость | B86: 9
A101: Диагностическая методика В.А. Ясвина
A104: Дифференцированная
A106: Критерии оценки среды | B106: Баллы (max.10) | C106: Баллы (max.10) | D106: Баллы (max.10) | E106: Баллы (max.10) | F106: Баллы (max.10)
B108: РУКОВОДИТЕЛЬ/ ДИРЕКТОР | C108: АДМИНИСТРАЦИЯ | D108: ПЕДАГОГИЧЕСКИЕ РАБОТНИКИ | E108: РОДИТЕЛИ | F108: УЧЕНИКИ
A109: Количество опрошенных | B109: 1 | C109: 4 | D109: 25 | E109: 30 | F109: 30
A110: Широта | B110: 4 | C110: 4 | D110: 5 | E110: 7 | F110: 5
A111: Интенсивность | B111: 6 | C111: 6 | D111: 6 | E111: 7 | F111: 5
A112: Осознаваемость | B112: 4 | C112: 4 | D112: 7 | E112: 8 | F112: 5
A113: Обобщенность | B113: 6 | C113: 7 | D113: 7 | E113: 8 | F113: 4
A114: Эмоциональность | B114: 7 | C114: 7 | D114: 9 | E114: 10 | F114: 5
A115: Доминантность | B115: 7 | C115: 8 | D115: 10 | E115: 10 | F115: 8
A116: Когерентность | B116: 9 | C116: 10 | D116: 7 | E116: 8 | F116: 5
A117: Активность | B117: 7 | C117: 7 | D117: 8 | E117: 9 | F117: 4
A118: Мобильность | B118: 8 | C118: 7 | D118: 6 | E118: 7 | F118: 7
A119: Структурированность | B119: 8 | C119: 8 | D119: 6 | E119: 7 | F119: 7
A120: Безопасность | B120: 8 | C120: 8 | D120: 5 | E120: 6 | F120: 8
A121: Устойчивость | B121: 8 | C121: 8 | D121: 7 | E121: 6 | F121: 9

Sheet Промежуточный мониторинг - 2
A1: Дата проведения мониторинга | B1: 1990-01-01
D3: ПРИМЕР
A4: Оцените в процентном соотношении. | B4: Ответы | D4: Ответы
A5: 1. Чьи интересы и ценности ставятся на первое место в данной образовательной среде? | B5: а) личности; | C5: б) общества (группы). | D5: а) личности; | E5: б) общества (группы).
A6: Констатация приоритета личностных интересов и ценностей над общественными интерпретируется как возможность свободного развития ребенка, — соответственно, присваивается балл по шкале “свобода”; в случае констатации приоритета общественных интересов – присваивается балл по шкале “зависимость”. | B6: 0 | C6: 0 | D6: 40 | E6: 60
A7: 2. Кто к кому подстраивается в процессе взаимодействия? | B7: а) воспитатель/педагог к ребенку; | C7: б) ребенок к воспитателюпедагогу. | D7: Сумма по двум показателям должна быть равна 100
A8: Если отмечается, что в данной образовательной среде доминируют ситуации, когда воспитатель подстраивается к ребенку (или, по крайней мере, существует стремление воспитателей к такому положению), то это также интерпретируется как возможность свободного развития ребенка, — соответственно, присваивается балл по шкале “свобода”; если же констатируется, что ребенок вынужден приспосабливаться к своим воспитателям, то присваивается балл по шкале “зависимость”. | B8: 0 | C8: 0
A9: 3. Какая форма воспитания преимущественно осуществляется в данной образовательной среде? | B9: а) индивидуальная; | C9: б) коллективная (групповая).
A10: Ориентация образовательной среды на индивидуальную форму воспитания интерпретируется как наличие в среде дополнительной возможности для свободного развития самостоятельного ребенка, — присваивается балл по шкале “свобода”; в случае приоритета в образовательной среде коллективного воспитания присваивается балл по шкале “зависимость”. | B10: 0 | C10: 0
A11: 4. Практикуется ли в данной образовательной среде наказание ребенка? | B11: а) да; | C11: б) нет.
A12: Отсутствие наказаний рассматривается в качестве условия, способствующего развитию активности ребенка, — присваивается балл по шкале “активность”, при наличии в данной образовательной среде системы наказаний (используемой как прямо, так и опосредованно) — присваивается балл по шкале “пассивность”. | B12: 0 | C12: 0
A13: 5. Стимулируется ли в данной образовательной среде проявление ребенком какой-либо инициативы? | B13: а) да; | C13: б) нет.
A14: Если в рассматриваемой образовательной среде можно констатировать положительное подкрепление инициативы ребенка (как сознательное, так и бессознательное), то это интерпретируется как дополнительная возможность развития его активности, присваивается балл по шкале “активность”; если же, проявленная ребенком инициатива, как правило, может обернуться для него различного рода неприятностями, то присваивается балл по шкале “пассивность”. | B14: 0 | C14: 0
A15: 6. Находят ли какой-либо положительный отклик в данной образовательной среде те или иные творческие проявления ребенка? | B15: а) да; | C15: б) нет.
A16: В случае, когда в образовательной среде существуют условия, при которых творчество ребенка стимулируется или может быть оценено, такая среда рассматривается как способствующая развитию активности, — присваивается балл по шкале “активность”; если же творческие проявления ребенка игнорируются, остаются, как правило, незамеченными и неоцененными – присваивается балл по шкале “пассивность”. | B16: 0 | C16: 0
A40: Графическая модель соотношения типов образовательной среды
A43: Активность | B43: =(B12+B14+B16)/3 -> 0
A44: Зависимость | B44: =(C6+C8+C10)/3 -> 0
A45: Пассивность | B45: =(C12+C14+C16)/3 -> 0
A46: Свобода | B46: =(B6+B8+B10)/3 -> 0
C48: =
A49: Догматическая среда | B49: =(B44*B45)/100 -> 0
A50: Карьерная среда | B50: =B44*B43/100 -> 0
A51: Творческая среда | B51: =B46*B43/100 -> 0
A52: Безмятежная среда | B52: =B46*B45/100 -> 0
A58: 1 | B58: =IF(B6>50,-1,1) -> 1
A59: 2 | B59: =IF(B8>50,-1,1) -> 1
A60: 3 | B60: =IF(B10>50,-1,1) -> 1
A62: 4 | B62: =IF(B12>50,1,-1) -> -1
A63: 5 | B63: =IF(B14>50,1,-1) -> -1
A64: 6 | B64: =IF(B16>50,1,-1) -> -1
B66: Свобода - зависимость | C66: 0 | D66: =SUM(B58:B60) -> 3
B67: Активность - пассивность | C67: 0 | D67: =SUM(B62:B64) -> -3
A70: Диагностическая методика В.А. Ясвина
A72: Критерии оценки среды | B72: Баллы (max.10)
A73: ОБЩАЯ
A75: Широта | B75: 0
A76: Интенсивность | B76: 0
A77: Осознаваемость | B77: 0
A78: Обобщенность | B78: 0
A79: Эмоциональность | B79: 0
A80: Доминантность | B80: 0
A81: Когерентность | B81: 0
A82: Активность | B82: 0
A83: Мобильность | B83: 0
A84: Структурированность | B84: 0
A85: Безопасность | B85: 0
A86: Устойчивость | B86: 0
A101: Диагностическая методика В.А. Ясвина
A104: Дифференцированная
A106: Критерии оценки среды | B106: Баллы (max.10) | C106: Баллы (max.10) | D106: Баллы (max.10) | E106: Баллы (max.10) | F106: Баллы (max.10)
B108: РУКОВОДИТЕЛЬ/ ДИРЕКТОР | C108: АДМИНИСТРАЦИЯ | D108: ПЕДАГОГИ | E108: РОДИТЕЛИ | F108: УЧЕНИКИ
A109: Количество опрошенных | B109: 0 | C109: 0 | D109: 0 | E109: 0 | F109: 0
A110: Широта | B110: 0 | C110: 0 | D110: 0 | E110: 0 | F110: 0
A111: Интенсивность | B111: 0 | C111: 0 | D111: 0 | E111: 0 | F111: 0
A112: Осознаваемость | B112: 0 | C112: 0 | D112: 0 | E112: 0 | F112: 0
A113: Обобщенность | B113: 0 | C113: 0 | D113: 0 | E113: 0 | F113: 0
A114: Эмоциональность | B114: 0 | C114: 0 | D114: 0 | E114: 0 | F114: 0
A115: Доминантность | B115: 0 | C115: 0 | D115: 0 | E115: 0 | F115: 0
A116: Когерентность | B116: 0 | C116: 0 | D116: 0 | E116: 0 | F116: 0
A117: Активность | B117: 0 | C117: 0 | D117: 0 | E117: 0 | F117: 0
A118: Мобильность | B118: 0 | C118: 0 | D118: 0 | E118: 0 | F118: 0
A119: Структурированность | B119: 0 | C119: 0 | D119: 0 | E119: 0 | F119: 0
A120: Безопасность | B120: 0 | C120: 0 | D120: 0 | E120: 0 | F120: 0
A121: Устойчивость | B121: 0 | C121: 0 | D121: 0 | E121: 0 | F121: 0

Sheet Итоговый мониторинг
A1: Дата проведения мониторинга | B1: 2021-04-22
D3: ПРИМЕР
A4: Оцените в процентном соотношении. | B4: Ответы | D4: Ответы
A5: 1. Чьи интересы и ценности ставятся на первое место в данной образовательной среде? | B5: а) личности; | C5: б) общества (группы). | D5: а) личности; | E5: б) общества (группы).
A6: Констатация приоритета личностных интересов и ценностей над общественными интерпретируется как возможность свободного развития ребенка, — соответственно, присваивается балл по шкале “свобода”; в случае констатации приоритета общественных интересов – присваивается балл по шкале “зависимость”. | B6: 0 | C6: 0 | D6: 40 | E6: 60
A7: 2. Кто к кому подстраивается в процессе взаимодействия? | B7: а) воспитатель/педагог к ребенку; | C7: б) ребенок к воспитателю/педагогу. | D7: Сумма по двум показателям должна быть равна 100
A8: Если отмечается, что в данной образовательной среде доминируют ситуации, когда воспитатель подстраивается к ребенку (или, по крайней мере, существует стремление воспитателей к такому положению), то это также интерпретируется как возможность свободного развития ребенка, — соответственно, присваивается балл по шкале “свобода”; если же констатируется, что ребенок вынужден приспосабливаться к своим воспитателям, то присваивается балл по шкале “зависимость”. | B8: 0 | C8: 0
A9: 3. Какая форма воспитания преимущественно осуществляется в данной образовательной среде? | B9: а) индивидуальная; | C9: б) коллективная (групповая).
A10: Ориентация образовательной среды на индивидуальную форму воспитания интерпретируется как наличие в среде дополнительной возможности для свободного развития самостоятельного ребенка, — присваивается балл по шкале “свобода”; в случае приоритета в образовательной среде коллективного воспитания присваивается балл по шкале “зависимость”. | B10: 0 | C10: 0
A11: 4. Практикуется ли в данной образовательной среде наказание ребенка? | B11: а) да; | C11: б) нет.
A12: Отсутствие наказаний рассматривается в качестве условия, способствующего развитию активности ребенка, — присваивается балл по шкале “активность”, при наличии в данной образовательной среде системы наказаний (используемой как прямо, так и опосредованно) — присваивается балл по шкале “пассивность”. | B12: 0 | C12: 0
A13: 5. Стимулируется ли в данной образовательной среде проявление ребенком какой-либо инициативы? | B13: а) да; | C13: б) нет.
A14: Если в рассматриваемой образовательной среде можно констатировать положительное подкрепление инициативы ребенка (как сознательное, так и бессознательное), то это интерпретируется как дополнительная возможность развития его активности, присваивается балл по шкале “активность”; если же, проявленная ребенком инициатива, как правило, может обернуться для него различного рода неприятностями, то присваивается балл по шкале “пассивность”. | B14: 0 | C14: 0
A15: 6. Находят ли какой-либо положительный отклик в данной образовательной среде те или иные творческие проявления ребенка? | B15: а) да; | C15: б) нет.
A16: В случае, когда в образовательной среде существуют условия, при которых творчество ребенка стимулируется или может быть оценено, такая среда рассматривается как способствующая развитию активности, — присваивается балл по шкале “активность”; если же творческие проявления ребенка игнорируются, остаются, как правило, незамеченными и неоцененными – присваивается балл по шкале “пассивность”. | B16: 0 | C16: 0
A40: Графическая модель соотношения типов образовательной среды
A43: Активность | B43: =(B12+B14+B16)/3 -> 0
A44: Зависимость | B44: =(C6+C8+C10)/3 -> 0
A45: Пассивность | B45: =(C12+C14+C16)/3 -> 0
A46: Свобода | B46: =(B6+B8+B10)/3 -> 0
C48: =
A49: Догматическая среда | B49: =(B44*B45)/100 -> 0
A50: Карьерная среда | B50: =B44*B43/100 -> 0
A51: Творческая среда | B51: =B46*B43/100 -> 0
A52: Безмятежная среда | B52: =B46*B45/100 -> 0
A58: 1 | B58: =IF(B6>50,-1,1) -> 1
A59: 2 | B59: =IF(B8>50,-1,1) -> 1
A60: 3 | B60: =IF(B10>50,-1,1) -> 1
A62: 4 | B62: =IF(B12>50,1,-1) -> -1
A63: 5 | B63: =IF(B14>50,1,-1) -> -1
A64: 6 | B64: =IF(B16>50,1,-1) -> -1
B66: Свобода - зависимость | C66: 0 | D66: =SUM(B58:B60) -> 3
B67: Активность - пассивность | C67: 0 | D67: =SUM(B62:B64) -> -3
A70: Диагностическая методика В.А. Ясвина
A72: Критерии оценки среды | B72: Баллы (max.10)
A73: ОБЩАЯ
A75: Широта | B75: 0
A76: Интенсивность | B76: 0
A77: Осознаваемость | B77: 0
A78: Обобщенность | B78: 0
A79: Эмоциональность | B79: 0
A80: Доминантность | B80: 0
A81: Когерентность | B81: 0
A82: Активность | B82: 0
A83: Мобильность | B83: 0
A84: Структурированность | B84: 0
A85: Безопасность | B85: 0
A86: Устойчивость | B86: 0
A101: Диагностическая методика В.А. Ясвина
A104: Дифференцированная
A106: Критерии оценки среды | B106: Баллы (max.10) | C106: Баллы (max.10) | D106: Баллы (max.10) | E106: Баллы (max.10) | F106: Баллы (max.10)
B108: РУКОВОДИТЕЛЬ/ ДИРЕКТОР | C108: АДМИНИСТРАЦИЯ | D108: ПЕДАГОГИ | E108: РОДИТЕЛИ | F108: УЧЕНИКИ
A109: Количество опрошенных | B109: 0 | C109: 0 | D109: 0 | E109: 0 | F109: 0
A110: Широта | B110: 0 | C110: 0 | D110: 0 | E110: 0 | F110: 0
A111: Интенсивность | B111: 0 | C111: 0 | D111: 0 | E111: 0 | F111: 0
A112: Осознаваемость | B112: 0 | C112: 0 | D112: 0 | E112: 0 | F112: 0
A113: Обобщенность | B113: 0 | C113: 0 | D113: 0 | E113: 0 | F113: 0
A114: Эмоциональность | B114: 0 | C114: 0 | D114: 0 | E114: 0 | F114: 0
A115: Доминантность | B115: 0 | C115: 0 | D115: 0 | E115: 0 | F115: 0
A116: Когерентность | B116: 0 | C116: 0 | D116: 0 | E116: 0 | F116: 0
A117: Активность | B117: 0 | C117: 0 | D117: 0 | E117: 0 | F117: 0
A118: Мобильность | B118: 0 | C118: 0 | D118: 0 | E118: 0 | F118: 0
A119: Структурированность | B119: 0 | C119: 0 | D119: 0 | E119: 0 | F119: 0
A120: Безопасность | B120: 0 | C120: 0 | D120: 0 | E120: 0 | F120: 0
A121: Устойчивость | B121: 0 | C121: 0 | D121: 0 | E121: 0 | F121: 0
